Workbook

Sheet Sheet1
A1: INSTRUCTIONS: Use this form when a single information collection document involves multiple reporting and recordkeeping requirements. The totals of the figures in cols. should be entered in item 13 of OMB-83-1: cols. (D) &/or (I) = 13a (respondent is only counted once); cols. F & I = 13b; cols. H & K = 13c; (F)Total/(D)Total = (E)Average; (H)Total/(F)Total = (G)Average; (K)Total/(I)Total = (J)Average NOTE: The columns will calculate automatically. If Col. E's response is something other than annually, i.e., 1/6 years, list as "1/6" & decimal will display. | I1: TITLE OF INFORMATION COLLECTION DOCUMENT Vegetable and Specialty Crops | N1: OMB NO. 0581-0178
N2: DATE PREPARED 10/02/2023
A3: IDENTIFICATION OF REPORTING OR RECORDKEEPING REQUIREMENT | H3: ANNUAL BURDEN
H4: REPORTS | M4: RECORDS
A5: SECTION OF REGS. (A) | B5: DESCRIPTION (B) | G5: FORM Nos. (If none, so state) (C) | H5: NO. OF RESPONDENTS (D) | I5: NO. OF RESPONSES PER RESPONDENT (E) | J5: TOTAL ANNUAL RESPONSES (Col. DxE) (F) | K5: HOURS PER RESPONSE (G) | L5: TOTAL HOURS (Co. FxG) (H) | M5: NO. OF RECORD KEEPERS (I) | N5: ANNUAL HOURS PER RECORD KEEPER (J) | O5: TOTAL RECORD KEEPING HOURS (Col. IxJ) (K)
A6: 7 CFR | B6: CONFIDENTIAL BACKGROUND QUESTIONNAIRE
A7: 955.22, 956.24, 958.22, 982.34, 984.37, 985.23, 989.30, 989.32 | B7: Background Questionnaire for Public Members and Alternates (approved under 0581-0177) | G7: SC-8 | H7: 18 | I7: 0.5 | J7: 9 | K7: 0.083 | L7: 0.75 | O7: 0
A8: 932.29, 945.25, 948.58, 955.22, 956.24, 958.22, 959.27, 966.27, 981.34, 982.34, 984.39, 985.23, 987.25, 989.30, 993.26 | B8: Background Questionnaire for Industry Members and Alternates (approved under 0581-0177) | G8: SC-9 | H8: 235 | I8: 0.5 | J8: 132.5 | K8: 0.083 | L8: 11 | O8: 0
B9: SUBTOTAL | J9: =SUM(J7:J8) -> 141.5 | L9: =SUM(L7:L8) -> 11.75 | O9: =SUM(O7:O8) -> 0
B10: TOTAL OF ALL PAGES | J10: =SUM(J9,J23,J33,J43,J56,J68,J77,J87,J96,J109,J123,J135,J145,J154,J166,J179,J192,J204,J215,J226,J231,J241,J252,J259,J269,J279,J290,J300,J309,J318,J329,J339,J349) -> 56303.58715 | L10: =SUM(L9,L23,L33,L43,L56,L68,L77,L87,L96,L109,L123,L135,L145,L154,L166,L179,L192,L204,L215,L226,L231,L241,L252,L259,L269,L279,L290,L300,L309,L318,L329,L339,L349) -> 17616.87529 | M10: =SUM(M109:M123) -> 748 | O10: =SUM(O9,O23,O33,O43,O56,O68,O77,O87,O96,O109,O123,O135,O145,O154,O166,O179,O192,O204,O215,O226,O231,O241,O252,O259,O269,O279,O290,O300,O309,O318,O329,O339,O349) -> 820.79
A11: TOTAL - COLUMNS "F" AND "I" = OMB 831, 13 b; COLUMNS "H" AND "K" = OMB 831, 13c | J11: =SUM(J10,M10) -> 57051.58715 | L11: =SUM(L10,O10) -> 18437.66529 | P11: MO # | Q11: Program | R11: Growers+Handlers 2020 | S11: Growers+Handlers2023 | T11: Growers | U11: Percent Change | V11: Burden Adj Factor
A12: 7 CFR | B12: COMMITTEE NOMINATION BALLOTS | P12: 981 | Q12: Almonds | R12: 6900 | S12: 7700 | T12: 7600 | U12: =(S12-R12)/R12 -> 0.115942029 | V12: =(1+U12) -> 1.115942029
A13: 932.25 932.28 | B13: 932 - California Olives Producer Nomination Ballot (District 1) | G13: SC-269 | H13: 425 | I13: 0.1667 | J13: =SUM(H13*I13) -> 70.8475 | K13: 0.25 | L13: =SUM(J13*K13) -> 17.711875 | O13: =SUM(M13*N13) -> 0 | P13: 987 | Q13: Dates | R13: 81 | S13: 81 | T13: 81 | U13: =(S13-R13)/R13 -> 0 | V13: =(1+U13) -> 1
A14: 932.25 932.28 | B14: 932 - California Olives Producer Nomination Ballot (District 2) | G14: SC-273 | H14: 425 | I14: 0.1667 | J14: =SUM(H14*I14) -> 70.8475 | K14: 0.25 | L14: =SUM(J14*K14) -> 17.711875 | P14: 932 | Q14: Olives | R14: 802 | S14: 802 | T14: 800 | U14: 0 | V14: 1
A15: 900.403 932.68 | B15: 932 - California Olives Producer Referendum Ballot (District 1) | G15: SC-236A | H15: 425 | I15: 0.1667 | J15: =SUM(H15*I15) -> 70.8475 | K15: 0.25 | L15: =SUM(J15*K15) -> 17.711875 | O15: =SUM(M15*N15) -> 0 | P15: 993 | Q15: Prunes | R15: 820 | S15: 627 | T15: 627 | U15: -0.2353658537 | V15: 0.7646341463
A16: 900.403 932.68 | B16: 932 - California Olives Producer Referendum Ballot (District 2) | G16: SC-236B | H16: 425 | I16: 0.1667 | J16: =SUM(H16*I16) -> 70.8475 | K16: 0.25 | L16: =SUM(J16*K16) -> 17.711875 | P16: 989 | Q16: Raisins | R16: 2616 | S16: 1718 | T16: 1700 | U16: -0.3432721713 | V16: 0.6567278287
A17: 955.22 | B17: 955 - Vidalia Onions Voter Registration Sheet | G17: None | H17: 50 | I17: 1 | J17: =SUM(H17*I17) -> 50 | K17: 0.083 | L17: =SUM(J17*K17) -> 4.15 | O17: =SUM(M17*N17) -> 0 | P17: 984 | Q17: Walnuts | R17: 4490 | S17: 4580 | T17: 4500 | U17: =(S17-R17)/R17 -> 0.02004454343 | V17: =(1+U17) -> 1.020044543
A18: 955.22 | B18: 955 - Vidalia Onions Election Ballot | G18: None | H18: 50 | I18: 1 | J18: 50 | K18: 0.083 | L18: 4.15 | O18: 0 | P18: 948 | Q18: CO Potatoes | R18: 487 | S18: 487 | T18: 160 | U18: 0 | V18: 1
A19: 955.22 | B19: 955 - Vidalia Onions Nomination Ballot | G19: None | H19: 20 | I19: 1 | J19: 20 | K19: 0.0166 | L19: 0.332 | O19: 0 | P19: 966 | Q19: FL Tomatoes | R19: 92 | S19: 92 | T19: 50 | U19: 0 | V19: 1
A20: 982.32 | B20: 982 - Oregon-Washington Hazelnuts Growers | G20: F/H Form F(2) | H20: 1103 | I20: 0.5 | J20: =SUM(H20*I20) -> 551.5 | K20: 0.05 | L20: =SUM(J20*K20) -> 27.575 | O20: =SUM(M20*N20) -> 0 | P20: 958 | Q20: ID-OR Onions | R20: 281 | S20: 220 | T20: 190 | U20: -0.2170818505 | V20: 0.7829181495
A21: 982.32 | B21: 982 - Oregon-Washington Hazelnuts Handler, Position 4 | G21: F/H Form F(3) | H21: 12 | I21: 0.5 | J21: 6 | K21: 0.05 | L21: =SUM(J21*K21) -> 0.3 | O21: 0 | P21: 945 | Q21: ID-OR Potatoes | R21: 482 | S21: 478 | T21: 450 | U21: -0.008298755187 | V21: 0.9917012448
A22: 982.32 | B22: 982 - Oregon-Washington Hazelnuts Handler, Position 1-3 | G22: F/H Form F(4) | H22: 2 | I22: 0.5 | J22: 1 | K22: 0.05 | L22: 0.05 | O22: 0 | P22: 982 | Q22: Hazelnuts | R22: 817 | S22: 1117 | T22: 1103 | U22: 0.3671970624 | V22: 1.367197062
B23: SUBTOTAL | J23: =SUM(J13:J22) -> 961.89 | L23: =SUM(L13:L22) -> 107.4045 | M23: =SUM(M13:M21) -> 0 | N23: =SUM(N13:N22) -> 0 | O23: =SUM(O13:O22) -> 0 | P23: 959 | Q23: TX Onions | R23: 90 | S23: 80 | T23: 57 | U23: -0.1111111111 | V23: 0.8888888889
A24: 984.37 984.437 | B24: 984 - California Walnuts Producer Ballot, Districts 1 and 2 | G24: None | H24: 4500 | I24: 0.5 | J24: 2250 | K24: 0.083 | L24: 186.75 | O24: 0 | P24: 985 | Q24: Spearmint Oil | R24: 143 | S24: 142 | T24: 134 | U24: -0.006993006993 | V24: 0.993006993
A25: 984.37 | B25: 984 - California Walnuts Handler Ballot | G25: None | H25: 80 | I25: 0.5 | J25: 40 | K25: 0.083 | L25: 3.32 | O25: 0 | P25: 955 | Q25: Vidalia Onions | R25: 62 | S25: 74 | T25: 74 | U25: 0.1935483871 | V25: 1.193548387
A26: 987.24 | B26: 987 - California Dates Voter Eligibility Certificate | G26: None | H26: 105 | I26: 0.5 | J26: 52.5 | K26: 0.083 | L26: 4.3575 | O26: 0 | P26: 956 | Q26: Walla Walla Onions | R26: 26 | S26: 26 | T26: 15 | U26: 0 | V26: 1
A27: 987.24 | B27: 987 - California Dates Producer Ballot | G27: None | H27: 60 | I27: 0.5 | J27: 30 | K27: 0.083 | L27: 2.49 | O27: 0 | R27: =SUM(R12:R26) -> 18189 | S27: =SUM(S12:S26) -> 18224 | T27: =SUM(T12:T26) -> 17541
A28: 987.24 | B28: 987 - California Dates Producer-Handler Ballot | G28: None | H28: 9 | I28: 0.5 | J28: 4.5 | K28: 0.083 | L28: 0.3735 | O28: 0
A29: 987.24 | B29: 987 - California Dates Nomination for Membership | G29: None | H29: 9 | I29: 0.5 | J29: =SUM(H29*I29) -> 4.5 | K29: 0.083 | L29: =SUM(J29*K29) -> 0.3735 | O29: =SUM(M29*N29) -> 0 | Q29: Number of Handlers & Growers | S29: =SUM(S12:S26) -> 18224
A30: 989.29 | B30: 989 - California Raisins Independent Producer Nomination Ballot | G30: SC-223 | H30: =1700*V16 -> 1116.437309 | I30: 0.5 | J30: =SUM(H30*I30) -> 558.2186544 | K30: 0.2 | L30: =SUM(J30*K30) -> 111.6437309 | O30: =SUM(M30*N30) -> 0 | Q30: Estimated Number of Respondents | S30: =H7+H8+H13+H14+H18+H20+H21+H22+H24+H25+H27+H28+H30+H32+H129+H153+H156+H181+H183+H186+H194+H219+H220+H223+S24 -> 14190.43731
A31: 989.29 | B31: 989 - California Raisins Voluntary Indep. Producer's Statement | G31: None | H31: 70 | I31: 0.5 | J31: =SUM(H31*I31) -> 35 | K31: 0.083 | L31: =SUM(J31*K31) -> 2.905 | O31: =SUM(M31*N31) -> 0
A32: 993.28(a) 993.128 | B32: 993 - California Dried Prunes Official Nomination Ballot | G32: None | H32: 627 | I32: 1 | J32: 627 | K32: 0.2 | L32: 125.4 | O32: 0
B33: SUBTOTAL | J33: =SUM(J24:J32) -> 3601.718654 | L33: =SUM(L24:L32) -> 437.6132309 | M33: =SUM(M31:M36) -> 0 | O33: =SUM(O24:O32) -> 0
A34: 7 CFR | B34: LETTER OF ACCEPTANCE
A35: 948.59 | B35: 948 - Colorado Potatoes (Signature only, no burden) | G35: None | H35: 38 | I35: 0.5 | J35: 19 | L35: =SUM(J35*K35) -> 0
A36: 955.24 | B36: 955 - Vidalia Onions (Signature only, no burden) | G36: None | H36: 15 | I36: 0.5 | J36: =SUM(H36*I36) -> 7.5 | L36: =SUM(J36*K36) -> 0 | O36: =SUM(M36*N36) -> 0
A37: 959.29 | B37: 959 - South Texas Onions (Signature only, no burden) | G37: None | H37: 15 | I37: 0.5 | J37: =SUM(H37*I37) -> 7.5 | L37: =SUM(J37*K37) -> 0 | O37: =SUM(M37*N37) -> 0
A38: 966.29 | B38: 966 - Florida Tomatoes (Signature only, no burden) | G38: None | H38: 20 | I38: 1 | J38: =SUM(H38*I38) -> 20 | L38: =SUM(J38*K38) -> 0 | O38: =SUM(M38*N38) -> 0
A39: 987.25 | B39: 987 - California Dates (Signature only, no burden) | G39: None | H39: 18 | I39: 0.5 | J39: 9 | L39: 0 | O39: 0
A40: 993.31 | B40: 993 - California Dried Prunes (Signature only, no burden) | G40: None | H40: 44 | I40: 0.5 | J40: =SUM(H40*I40) -> 22 | L40: =SUM(J40*K40) -> 0 | O40: =SUM(M40*N40) -> 0
A41: 7 CFR | B41: MARKETING AGREEMENT
A42: 900.14 | B42: Marketing Agreement (Used by all commodities in this package, and accounts for burden of all these commodities) | G42: SC-325 | H42: 590 | I42: 0.1667 | J42: =SUM(H42*I42) -> 98.353 | K42: 0.083 | L42: =SUM(J42*K42) -> 8.163299 | O42: 0
B43: SUBTOTAL | J43: =SUM(J35:J42) -> 183.353 | L43: =SUM(L35:L42) -> 8.163299 | M43: =SUM(M35:M40) -> 0 | O43: =SUM(O35:O42) -> 0
A44: 7 CFR | B44: CERTIFICATE OF RESOLUTION
A45: 900.14 | B45: 932 - Olives | G45: SC-235-A | H45: 2 | I45: 0.1667 | J45: =SUM(H45*I45) -> 0.3334 | K45: 0.083 | L45: =SUM(J45*K45) -> 0.0276722 | O45: =SUM(M45*N45) -> 0
A46: 900.14 | B46: 945 - Idaho/E. Oregon Potatoes (Cooperative) | G46: SC-131B | H46: 2 | I46: 0.1667 | J46: =SUM(H46*I46) -> 0.3334 | K46: 0.083 | L46: =SUM(J46*K46) -> 0.0276722 | O46: 0
A47: 900.14 | B47: 945 - Idaho/E. Oregon Potatoes (Corporation) | G47: SC-132A | H47: 250 | I47: 0.1667 | J47: 41.675 | K47: 0.083 | L47: 3.459025 | O47: =SUM(M47*N47) -> 0
A48: 900.403 948.84 | B48: 948 - Colorado Potatoes Cooperative's Certificate of Resolution | G48: SC-50B | H48: 2 | I48: 0.1667 | J48: =SUM(H48*I48) -> 0.3334 | K48: 0.083 | L48: =SUM(J48*K48) -> 0.0276722 | O48: =SUM(M48*N48) -> 0
A49: 900.14 | B49: 948 - Colorado Potatoes | G49: SC-51A | H49: 60 | I49: 0.1667 | J49: =SUM(H49*I49) -> 10.002 | K49: 0.083 | L49: =SUM(J49*K49) -> 0.830166 | O49: =SUM(M49*N49) -> 0
A50: 900.14 | B50: 956 - Walla Walla Onions | G50: SC-113A | H50: 15 | I50: 0.1667 | J50: =SUM(H50*I50) -> 2.5005 | K50: 0.083 | L50: =SUM(J50*K50) -> 0.2075415 | O50: =SUM(M50*N50) -> 0
A51: 900.403 956.85 | B51: 956 - Walla Walla Onions Cooperative's Certificate of Resolution | G51: SC-114B | H51: 1 | I51: 0.1667 | J51: =SUM(H51*I51) -> 0.1667 | K51: 0.083 | L51: =SUM(J51*K51) -> 0.0138361 | O51: =SUM(M51*N51) -> 0
A52: 900.14 | B52: 958 - Idaho/E. Oregon Onions | G52: SC-31A | H52: 32 | I52: 0.1667 | J52: 5.3344 | K52: 0.083 | L52: 0.4427552 | O52: 0
A53: 900.403 958.71 | B53: 958 - Idaho/E. Oregon Onions Cooperative's Certificate of Resolution | G53: SC-30B | H53: 1 | I53: 0.1667 | J53: 0.1667 | K53: 0.083 | L53: 0.0138361 | O53: 0
A54: 900.14 | B54: 959 - South Texas Onions | G54: SC-89A | H54: 15 | I54: 0.1667 | J54: 2.5005 | K54: 0.083 | L54: 0.2075415 | O54: 0
A55: 900.14 | B55: 982 - Hazelnuts Corporation's Certificate of Resolution | G55: SC-137A | H55: 18 | I55: 0.1 | J55: 1.8 | K55: 0.083 | L55: 0.1494 | O55: 0
B56: SUBTOTAL | J56: =SUM(J45:J55) -> 65.146 | L56: =SUM(L45:L55) -> 5.407118 | M56: =SUM(M42:M59) -> 0 | O56: =SUM(O45:O55) -> 0
A57: 900.403 982.86 | B57: 982 - Hazelnuts Cooperative's Certificate of Resolution | G57: SC-136B | H57: 2 | I57: 0.1667 | J57: 0.3334 | K57: 0.083 | L57: 0.0276722 | O57: 0
A58: 900.14 | B58: 984 - California Walnuts | G58: SC-127-A | H58: 48 | I58: 0.1667 | J58: 8.0016 | K58: 0.083 | L58: 0.6641328 | O58: 0
A59: 900.14 985.72 | B59: 985 - Spearmint Oil Cooperative's Certificate of Resolution | G59: SC-60B | H59: 1 | I59: 0.1667 | J59: =SUM(H59*I59) -> 0.1667 | K59: 0.083 | L59: =SUM(J59*K59) -> 0.0138361 | O59: =SUM(M59*N59) -> 0
A60: 900.14 | B60: 985 - Spearmint Oil | G60: SC-63A | H60: 10 | I60: 0.1667 | J60: =SUM(H60*I60) -> 1.667 | K60: 0.083 | L60: =SUM(J60*K60) -> 0.138361 | O60: =SUM(M60*N60) -> 0
A61: 900.14 | B61: 989 - California Raisins | G61: SC-225-A | H61: 2 | I61: 0.1667 | J61: =SUM(H61*I61) -> 0.3334 | K61: 0.083 | L61: =SUM(J61*K61) -> 0.0276722 | O61: =SUM(M61*N61) -> 0
A62: 900.14 | B62: 993 - California Dried Prunes Cooperative's Certified Resolution | G62: SC-169A | H62: 1 | I62: 0.1 | J62: =SUM(H62*I62) -> 0.1 | K62: 0.083 | L62: =SUM(J62*K62) -> 0.0083 | O62: =SUM(M62*N62) -> 0
A63: 7 CFR | B63: AMENDATORY REFERENDUM BALLOT
A64: 900.403 900.402 | B64: Producer Amendatory Ballot (for marketing orders 932, 945, 948, 955, 956, 958, 959, 966, 981, 982, 984, 985, and 987) | G64: SC-3 | H64: 17451 | I64: 0.1667 | J64: =SUM(H64*I64) -> 2909.0817 | K64: 0.33 | L64: =SUM(J64*K64) -> 959.996961 | O64: =SUM(M64*N64) -> 0
A65: 900.403 900.402 | B65: Cooperative Amendatory Ballot (for marketing orders 945, 948, 956, 958, 982, and 985) | G65: SC-2 | H65: 17 | I65: 0.1667 | J65: =SUM(H65*I65) -> 2.8339 | K65: 0.33 | L65: =SUM(J65*K65) -> 0.935187 | O65: =SUM(M65*N65) -> 0
A66: 900.403 989.91 | B66: 989 - California Raisins Producer Referendum Ballot | G66: SC-224 | H66: =1700*V16 -> 1116.437309 | I66: 0.1667 | J66: =SUM(H66*I66) -> 186.1100994 | K66: 0.33 | L66: =SUM(J66*K66) -> 61.4163328 | O66: =SUM(M66*N66) -> 0
A67: 900.403 989.91 | B67: 989 - California Raisins Cooperative Association Referendum Ballot | G67: SC-225-B | H67: 4 | I67: 0.1667 | J67: =SUM(H67*I67) -> 0.6668 | K67: 0.33 | L67: =SUM(J67*K67) -> 0.220044 | O67: =SUM(M67*N67) -> 0
B68: SUBTOTAL | J68: =SUM(J57:J67) -> 3109.294599 | L68: =SUM(L57:L67) -> 1023.448499 | M68: =SUM(M48:M61) -> 0 | O68: =SUM(O57:O67) -> 0
A69: 7 CFR | B69: CONTINUANCE REFERENDUM BALLOT
A70: 900.403 | B70: Producer Continuance Referendum Ballott (for marketing orders 945, 955, 956, 959, 981, 982, and 989) | G70: SC-60 | H70: 17541 | I70: 0.1667 | J70: =SUM(H70*I70) -> 2924.0847 | K70: 0.33 | L70: =SUM(J70*K70) -> 964.947951 | O70: =SUM(M70*N70) -> 0
A71: 900.403 | B71: Cooperative Continuance Referendum Ballot (for marketing orders 945, 956, 981, 982, and 989) | G71: SC-60A | H71: 6 | I71: 0.1667 | J71: =SUM(H71*I71) -> 1.0002 | K71: 0.33 | L71: =SUM(J71*K71) -> 0.330066 | O71: =SUM(M71*N71) -> 0
A72: 7 CFR | B72: CERTIFICATE OF PRIVILEGE
A73: 945.56(2) | B73: 945 - Idaho/E. Oregon Potatoes Application for Certificate of Privilege for Special Purpose Shipment Report | G73: None | H73: 72 | I73: 1 | J73: =SUM(H73*I73) -> 72 | K73: 0.167 | L73: =SUM(J73*K73) -> 12.024 | O73: =SUM(M73*N73) -> 0
A74: 948.24(1) | B74: 948 - Colorado Potatoes (Area II) | G74: None | H74: 25 | I74: 1 | J74: =SUM(H74*I74) -> 25 | K74: 0.15 | L74: =SUM(J74*K74) -> 3.75 | O74: =SUM(M74*N74) -> 0
A75: 948.24(1) | B75: 948 - Colorado Potatoes (Area III) | G75: None | H75: 5 | I75: 1 | J75: 5 | K75: 0.15 | L75: 0.75 | O75: 0
A76: 956.66 | B76: 956 - Walla Walla Sweet Onions Shippers/Receivers Application for Certificate of Privilege | G76: Form 3 | H76: 1 | I76: 1 | J76: 1 | K76: 0.033 | L76: 0.033 | O76: 0
B77: SUBTOTAL | J77: =SUM(J70:J76) -> 3028.0849 | L77: =SUM(L70:L76) -> 981.835017 | M77: =SUM(M62:M71) -> 0 | O77: =SUM(O70:O76) -> 0
A78: 958.56 958.328 | B78: 958 - Idaho/E. Oregon Onions Application to Make Special Purpose Shipments - Certificate of Privilege | G78: SC-34 | H78: 25 | I78: 3 | J78: =SUM(H78*I78) -> 75 | K78: 0.1333 | L78: =SUM(J78*K78) -> 9.9975 | O78: =SUM(M78*N78) -> 0
A79: 959.122 | B79: 959 - South Texas Onions | G79: None | H79: 24 | I79: 1 | J79: =SUM(H79*I79) -> 24 | K79: 0.083 | L79: =SUM(J79*K79) -> 1.992 | O79: =SUM(M79*N79) -> 0
A80: 966.120 966.323 | B80: 966 - Florida Tomatoes Application for Certificate of Privilege | G80: FTC-108 | H80: 10 | I80: 1 | J80: 10 | K80: 0.083 | L80: 0.83 | O80: 0
A81: 7 CFR | B81: SPECIAL PURPOSE SHIPMENT
A82: 932.55 932.155 | B82: 932 - California Olives | G82: COC-155 | H82: 2 | I82: 1 | J82: =SUM(H82*I82) -> 2 | K82: 0.33 | L82: =SUM(J82*K82) -> 0.66 | O82: =SUM(M82*N82) -> 0
A83: 948.121 | B83: 948 - Colorado Potatoes (Area III) (Chipping Potatoes) | G83: None | H83: 4 | I83: 338 | J83: 1352 | K83: 0.15 | L83: 202.8 | O83: 0
A84: 948.121 | B84: 948 - Colorado Potatoes (Area II) | G84: None | H84: 20 | I84: 112 | J84: =SUM(H84*I84) -> 2240 | K84: 0.15 | L84: =SUM(J84*K84) -> 336 | O84: =SUM(M84*N84) -> 0
A85: 948.121 | B85: 948 - Colorado Potatoes (Area III) (Other than for Chipping) | G85: None | H85: 9 | I85: 34 | J85: =SUM(H85*I85) -> 306 | K85: 0.15 | L85: =SUM(J85*K85) -> 45.9 | O85: =SUM(M85*N85) -> 0
A86: 948.386 | B86: 948 - Colorado Potatoes (Area II) (Consideration of Approval as a Canner, Freezer, etc.) | G86: None | H86: 100 | I86: 1 | J86: 100 | K86: 0.15 | L86: 15 | O86: 0
B87: SUBTOTAL | J87: =SUM(J78:J86) -> 4109 | L87: =SUM(L78:L86) -> 613.1795 | M87: =SUM(M67:M76) -> 0 | O87: =SUM(O78:O86) -> 0
A88: 948.386 948.387 | B88: 948 - Colorado Potatoes (Area III) (Consideration of Approval as a Canner, Freezer, etc.) | G88: None | H88: 25 | I88: 1 | J88: 25 | K88: 0.15 | L88: 3.75 | O88: 0
A89: 948.23 948.24 948.386 | B89: 948 - Colorado Potatoes (Area II) Experimental Exemption for Potatoes | G89: None | H89: 10 | I89: 50 | J89: =SUM(H89*I89) -> 500 | K89: 0.15 | L89: =SUM(J89*K89) -> 75 | O89: =SUM(M89*N89) -> 0
A90: 948.23 948.24 948.386 | B90: 948 - Colorado Potatoes (Area II) Exemption for Fingerling Potatoes | G90: None | H90: 10 | I90: 50 | J90: =SUM(H90*I90) -> 500 | K90: 0.083 | L90: =SUM(J90*K90) -> 41.5
A91: 956.80 956.163 | B91: 956 - Walla Walla Sweet Onions Special Purpose Shipment Report | G91: Form No. 4 | H91: 1 | I91: 1 | J91: =SUM(H91*I91) -> 1 | K91: 0.33 | L91: =SUM(J91*K91) -> 0.33 | O91: =SUM(M91*N91) -> 0
A92: 958.56 958.328 | B92: 958 - Idaho/E. Oregon Onions Special Purpose Shipment Receiver Certification | G92: SC-36 | H92: 20 | I92: 1 | J92: =SUM(H92*I92) -> 20 | K92: 0.0333 | L92: =SUM(J92*K92) -> 0.666 | O92: =SUM(M92*N92) -> 0
A93: 959.124 | B93: 959 - South Texas Onions Report of Special Purpose Onion Shipment | G93: None | H93: 13 | I93: 25 | J93: =SUM(H93*I93) -> 325 | K93: 0.083 | L93: =SUM(J93*K93) -> 26.975 | O93: =SUM(M93*N93) -> 0
A94: 966.122 966.323 | B94: 966 - Florida Tomatoes Report of Special Purpose Certificate under Certificate of Privilege | G94: FTC-110 | H94: 15 | I94: 7 | J94: =SUM(H94*I94) -> 105 | K94: 0.083 | L94: =SUM(J94*K94) -> 8.715 | O94: =SUM(M94*N94) -> 0
A95: 966.124 | B95: 966 - Florida Tomatoes Application for Registration as an Approved Receiver of Special Purpose Shipments | G95: FTC-111 | H95: 20 | I95: 1 | J95: 20 | K95: 0.083 | L95: 1.66 | O95: 0
B96: SUBTOTAL | J96: =SUM(J88:J95) -> 1496 | L96: =SUM(L88:L95) -> 158.596 | M96: =SUM(M89:M95) -> 0 | O96: =SUM(O88:O95) -> 0
A97: 7 CFR | B97: APPLICATION FOR REGISTERED HANDLER
A98: 956.180 | B98: 956 - Walla Walla Sweet Onions Handler Registration Form | G98: Form No. 2 | H98: 9 | I98: 1 | J98: =SUM(H98*I98) -> 9 | K98: 0.25 | L98: =SUM(J98*K98) -> 2.25 | O98: =SUM(M98*N98) -> 0
A99: 959.103 | B99: 959 - South Texas Onions | G99: None | H99: 30 | I99: 1 | J99: 30 | K99: 0.083 | L99: 2.49 | O99: 0
A100: 966.113 | B100: 966 - Florida Tomatoes Application for Registration as Tomato Handler | G100: FTC-102-75 | H100: 37 | I100: 1 | J100: =SUM(H100*I100) -> 37 | K100: 0.083 | L100: =SUM(J100*K100) -> 3.071 | O100: =SUM(M100*N100) -> 0
A101: 966.56(a) 966.323(d) | B101: 966 - Florida Tomatoes Application for Certified Tomato Repacker | G101: FTC-103 | H101: 20 | I101: 1 | J101: =SUM(H101*I101) -> 20 | K101: 0.083 | L101: =SUM(J101*K101) -> 1.66 | O101: =SUM(M101*N101) -> 0
A102: 7 CFR | B102: RECORD KEEPING
A103: 932.61 | B103: 932 - Olives | G103: None | J103: =SUM(H103*I103) -> 0 | L103: =SUM(J103*K103) -> 0 | M103: 2 | N103: 52.83 | O103: =SUM(M103*N103) -> 105.66
A104: 945.80 | B104: 945 - Idaho/E. Oregon Potatoes | G104: None | J104: 0 | L104: 0 | M104: 48 | N104: 0.42 | O104: 20.16
A105: 948.80 | B105: 948 - Colorado Potatoes (Area II) | G105: None | J105: 0 | L105: 0 | M105: 20 | N105: 1.08 | O105: 21.6
A106: 948.80 | B106: 948 - Colorado Potatoes (Area III) | G106: None | J106: =SUM(H106*I106) -> 0 | L106: =SUM(J106*K106) -> 0 | M106: 9 | N106: 1.08 | O106: =SUM(M106*N106) -> 9.72
A107: 955.60 | B107: 955 - Vidalia Onions | G107: None | J107: =SUM(H107*I107) -> 0 | L107: =SUM(J107*K107) -> 0 | M107: 75 | N107: 0.33 | O107: =SUM(M107*N107) -> 24.75
A108: 956.80 | B108: 956 - Walla Walla Sweet Onions | G108: None | J108: =SUM(H108*I108) -> 0 | L108: =SUM(J108*K108) -> 0 | M108: 28 | N108: 0.16 | O108: =SUM(M108*N108) -> 4.48
B109: SUBTOTAL | J109: =SUM(J98:J108) -> 96 | L109: =SUM(L98:L108) -> 9.471 | M109: =SUM(M98:M108) -> 182 | O109: =SUM(O98:O108) -> 186.37
A110: 958.65 | B110: 958 - Idaho/E. Oregon Onions | G110: None | J110: =SUM(H110*I110) -> 0 | L110: =SUM(J110*K110) -> 0 | M110: 38 | N110: 0.43 | O110: =SUM(M110*N110) -> 16.34
A111: 959.80 | B111: 959 - South Texas Onions | G111: None | J111: 0 | L111: 0 | M111: 38 | N111: 0.16 | O111: 6.08
A112: 966.80 | B112: 966 - Florida Tomatoes | G112: None | J112: =SUM(H112*I112) -> 0 | L112: =SUM(J112*K112) -> 0 | M112: 70 | N112: 0.03 | O112: =SUM(M112*N112) -> 2.1
A113: 981.70 | B113: 981 - California Almonds | G113: None | J113: =SUM(H113*I113) -> 0 | L113: =SUM(J113*K113) -> 0 | M113: 0 | N113: 0 | O113: =SUM(M113*N113) -> 0
A114: 982.71 | B114: 982 - Hazelnuts | G114: None | J114: 0 | L114: 0 | M114: 18 | N114: 5 | O114: 90
A115: 984.80 984.480 | B115: 984 - California Walnuts | G115: None | J115: =SUM(H115*I115) -> 0 | L115: =SUM(J115*K115) -> 0 | M115: 63 | N115: 1 | O115: =SUM(M115*N115) -> 63
A116: 985.61 | B116: 985 - Spearmint Oil | G116: None | J116: 0 | L116: 0 | M116: 10 | N116: 1.5 | O116: 15
A117: 987.168 | B117: 987 - California Dates | G117: None | J117: 0 | L117: 0 | M117: 10 | N117: 0.5 | O117: 5
A118: 989.176 | B118: 989 - California Raisins | G118: None | J118: =SUM(H118*I118) -> 0 | L118: =SUM(J118*K118) -> 0 | M118: 26 | N118: 16.8 | O118: =SUM(M118*N118) -> 436.8
A119: 993.59 993.159 | B119: 993 - California Dried Prunes (Reporting requirements currently suspended) | G119: None | J119: =SUM(H119*I119) -> 0 | L119: =SUM(J119*K119) -> 0 | M119: 0 | O119: =SUM(M119*N119) -> 0
A120: 999.1 | B120: 999 - Imported Dates | G120: None | J120: =SUM(H120*I120) -> 0 | L120: =SUM(J120*K120) -> 0 | M120: 10 | N120: 0.01 | O120: =SUM(M120*N120) -> 0.1
A121: 7 CFR | B121: 932 - OLIVES
A122: 932.60 | B122: COC Online Portal Login (Electronic) | G122: None | H122: 0 | I122: 0 | J122: 0 | K122: 0 | L122: 0 | O122: =SUM(M122*N122) -> 0
B123: SUBTOTAL | J123: =SUM(J110:J122) -> 0 | L123: =SUM(L110:L122) -> 0 | M123: =SUM(M110:M122) -> 283 | O123: =SUM(O110:O122) -> 634.42
A124: 932.60 | B124: Electronic Reporting Instructions (resource material) | G124: None | H124: 0 | I124: 0 | J124: 0 | K124: 0 | L124: 0 | O124: 0
A125: 932.51(a) 932.151(b) | B125: Weight and Grade Report (Electronic and Paper) | G125: COC-3c | H125: 2 | I125: 3000 | J125: =SUM(H125*I125) -> 6000 | K125: 0.25 | L125: =SUM(J125*K125) -> 1500 | O125: =SUM(M125*N125) -> 0
A126: 932.152(c) | B126: Pack and Certification Report | G126: COC-4 | H126: 2 | I126: 80 | J126: 160 | K126: 0.25 | L126: 40 | O126: 0
A127: 932.51 932.151(e) | B127: Report of Limited, Undersized, and Cull Olives (Electronic and Paper) | G127: COC-5 | H127: 2 | I127: 50 | J127: =SUM(H127*I127) -> 100 | K127: 0.25 | L127: =SUM(J127*K127) -> 25 | O127: =SUM(M127*N127) -> 0
A128: 932.29 | B128: Statement of Assessable Tonnage | G128: COC-13 | H128: 2 | I128: 1 | J128: 2 | K128: 0.25 | L128: 0.5 | O128: 0
A129: 932.139 | B129: Final Assessment Payment | G129: COC-17 | H129: 2 | I129: 1 | J129: 2 | K129: 0.25 | L129: 0.5 | O129: 0
A130: 932.61 932.161(a) | B130: Weekly Report of Olives Received | G130: COC-19 | H130: 2 | I130: 9 | J130: 18 | K130: 0.25 | L130: 4.5 | O130: 0
A131: 932.61 932.151(f) | B131: Grower Authorization to Combine Lots | G131: COC-23 | H131: 2 | I131: 1 | J131: =SUM(H131*I131) -> 2 | K131: 0.1 | L131: =SUM(J131*K131) -> 0.2 | O131: 0
A132: 932.161(d) | B132: Inventory Holdings of Canned Ripe Olives | G132: COC-27a | H132: 2 | I132: 24 | J132: =SUM(H132*I132) -> 48 | K132: 0.5 | L132: =SUM(J132*K132) -> 24 | O132: =SUM(M132*N132) -> 0
A133: 932.61 932.161(d), (e) | B133: Inventory Holdings of Limited Use Olives | G133: COC-27b | H133: 2 | I133: 12 | J133: =SUM(H133*I133) -> 24 | K133: 0.5 | L133: =SUM(J133*K133) -> 12 | O133: =SUM(M133*N133) -> 0
A134: 932.61 932.161(e) | B134: Report of Canning Size Olives in Storage | G134: COC-27c | H134: 2 | I134: 12 | J134: 24 | K134: 0.5 | L134: 12 | O134: 0
B135: SUBTOTAL | J135: =SUM(J124:J134) -> 6380 | L135: =SUM(L124:L134) -> 1618.7 | O135: =SUM(O124:O134) -> 0
A136: 932.61 932.161(f) | B136: Packout Report of Canned Ripe Olives | G136: COC-28a | H136: 2 | I136: 24 | J136: 48 | K136: 0.5 | L136: 24 | O136: 0
A137: 932.61 932.161(f) | B137: Packout Report of Canned Ripe Olives - Limited Use | G137: COC-28b | H137: 2 | I137: 12 | J137: 24 | K137: 0.5 | L137: 12 | O137: 0
A138: 932.61 932.161(b) | B138: Sales of Canned Ripe Olives | G138: COC-29a | H138: 2 | I138: 24 | J138: =SUM(H138*I138) -> 48 | K138: 0.5 | L138: =SUM(J138*K138) -> 24 | O138: =SUM(M138*N138) -> 0
A139: 932.61 932.161(b) | B139: Sales of Canned Ripe Olives - Limited Use | G139: COC-29b | H139: 2 | I139: 12 | J139: =SUM(H139*I139) -> 24 | K139: 0.5 | L139: =SUM(J139*K139) -> 12 | O139: =SUM(M139*N139) -> 0
A140: 932.61 | B140: Interhandler Sale or Purchase of Canned Ripe Olives | G140: COC-30 | H140: 2 | I140: 5 | J140: =SUM(H140*I140) -> 10 | K140: 0.167 | L140: =SUM(J140*K140) -> 1.67 | O140: =SUM(M140*N140) -> 0
A141: 932.32(c) | B141: Grower Identification Number (GIN) Application | G141: COC-33 | H141: 800 | I141: 1 | J141: =SUM(H141*I141) -> 800 | K141: 0.33 | L141: =SUM(J141*K141) -> 264 | O141: 0
A142: 7 CFR | B142: 945 - IDAHO/E. OREGON POTATOES
A143: 945.56 | B143: Receiver's Certificate of Use | G143: None | H143: 66 | I143: 1 | J143: 66 | K143: 0.083 | L143: 5.478 | O143: 0
A144: 945.56 | B144: Certificate of Privilege Shipment Summary (Handlers and Receivers; two separate forms but shared burden) | G144: None | H144: 112 | I144: 1 | J144: =SUM(H144*I144) -> 112 | K144: 0.167 | L144: =SUM(J144*K144) -> 18.704 | O144: =SUM(M144*N144) -> 0
B145: SUBTOTAL | J145: =SUM(J136:J144) -> 1132 | L145: =SUM(L136:L144) -> 361.852 | M145: =SUM(M136:M144) -> 0 | O145: =SUM(O136:O144) -> 0
A146: 945.56 945.80 945.341 | B146: Application for Consideration of Approval as a Canner, Freezer, or other Processor or Preparer of Potato Products for Special Purpose Shipment Reports | G146: None | H146: 32 | I146: 1 | J146: 32 | K146: 0.15 | L146: 4.8 | O146: 0
A147: 7 CFR | B147: 948 - COLORADO POTATOES
A148: 948.30 948.130 | B148: Application for Hardship Exemption (Area II) | G148: None | H148: 1 | I148: 0 | J148: =SUM(H148*I148) -> 0 | K148: 0.15 | L148: =SUM(J148*K148) -> 0 | O148: =SUM(M148*N148) -> 0
A149: 948.30 948.130 | B149: Application for Hardship Exemption (Area III) | G149: None | H149: 5 | I149: 1 | J149: 5 | K149: 0.15 | L149: 0.75 | O149: 0
A150: 948.30 | B150: Handler Application for Waiver of Inspection (Area III) | G150: None | H150: 5 | I150: 1 | J150: 5 | K150: 0.15 | L150: 0.75 | O150: 0
A151: 948.30 | B151: Waiver of Inspection - Weekly Shipment Report (Area III) | G151: None | H151: 6 | I151: 24 | J151: 144 | K151: 0.15 | L151: 21.6 | O151: 0
A152: 7 CFR | B152: 955 - VIDALIA ONIONS
A153: 955.60 | B153: Monthly Vidalia Onion Handler Report | G153: SC-181 | H153: 30 | I153: 12 | J153: 360 | K153: 0.083 | L153: 29.88 | O153: 0
B154: SUBTOTAL | J154: =SUM(J146:J153) -> 546 | L154: =SUM(L146:L153) -> 57.78 | M154: =SUM(M146:M153) -> 0 | O154: =SUM(O146:O153) -> 0
A155: 7 CFR | B155: 956 - WALLA WALLA SWEET ONIONS
A156: 956.80 956.180 | B156: Handler's Statement of Walla Walla Sweet Onion Shipments (Changed from FV-1 to Form No. 1 and became a Committee managed form) | G156: Form 1 | H156: 9 | I156: 1 | J156: 9 | K156: 0.25 | L156: 2.25 | O156: 0
A157: 7 CFR | B157: 958 - IDAHO/E. OREGON ONIONS
A158: 958.56 958.180 | B158: Diversion Report | G158: SC-35 | H158: 20 | I158: 100 | J158: 2000 | K158: 0.1333 | L158: 266.6 | O158: 0
A159: 958.328 | B159: Fresh Cut Report | G159: SC-37 | H159: 5 | I159: 60 | J159: =SUM(H159*I159) -> 300 | K159: 0.083 | L159: =SUM(J159*K159) -> 24.9 | O159: =SUM(M159*N159) -> 0
A160: 958.42 958.240 958.250 | B160: Assessment Credit Report | G160: SC-38 | H160: 25 | I160: 20 | J160: =SUM(H160*I160) -> 500 | K160: 0.1333 | L160: =SUM(J160*K160) -> 66.65 | O160: =SUM(M160*N160) -> 0
A161: 7 CFR | B161: 959 - SOUTH TEXAS ONIONS
A162: 959.115 | B162: Onion Acreage Registration | G162: None | H162: 30 | I162: 9 | J162: 270 | K162: 0.083 | L162: 22.41 | O162: 0
A163: 959.126 | B163: Certification for Handling Onions for Processing (Canners and/or Freezers) | G163: None | H163: 10 | I163: 1 | J163: 10 | K163: 0.083 | L163: 0.83 | O163: 0
A164: 959.126 | B164: Certification for Subcontractors who Peel and/or Chop Onions for Processors for Special Purpose Onion Shipments | G164: None | H164: 1 | I164: 1 | J164: =SUM(H164*I164) -> 1 | K164: 0.083 | L164: =SUM(J164*K164) -> 0.083 | O164: =SUM(M164*N164) -> 0
A165: 959.126 | B165: Relief or Charity Certification for Handling Onions which Fail to Meet the South Texas Onion Rules and Regulations | G165: None | H165: 4 | I165: 1 | J165: =SUM(H165*I165) -> 4 | K165: 0.083 | L165: =SUM(J165*K165) -> 0.332 | O165: =SUM(M165*N165) -> 0
B166: SUBTOTAL | J166: =SUM(J156:J165) -> 3094 | L166: =SUM(L156:L165) -> 384.055 | M166: =SUM(M155:M165) -> 0 | O166: =SUM(O155:O165) -> 0
A167: 7 CFR | B167: 981 - CALIFORNIA ALMONDS
A168: 981.72 | B168: ABC Online Portal Log-in (electronic) | G168: None | H168: 0 | I168: 0 | J168: 0 | K168: 0 | L168: 0 | O168: =SUM(M168*N168) -> 0
A169: 981.441(e) | B169: Credit-Back Guide | G169: None | H169: 10 | I169: 1 | J169: =SUM(H169*I169) -> 10 | K169: 0.5 | L169: =SUM(J169*K169) -> 5 | O169: =SUM(M169*N169) -> 0
A170: 981.72 981.472(a) | B170: Summary Report (electronic) | G170: ABC 1 | H170: 100 | I170: 12 | J170: =SUM(H170*I170) -> 1200 | K170: 0.5 | L170: =SUM(J170*K170) -> 600 | O170: =SUM(M170*N170) -> 0
A171: 981.73 981.473 | B171: Redetermination Report | G171: ABC 2 | H171: 100 | I171: 3 | J171: 300 | K171: 0.5 | L171: 150 | O171: 0
A172: 981.73 981.473 | B172: Current Inventory for Next Redetermination Report | G172: ABC 2A | H172: 100 | I172: 3 | J172: 300 | K172: 0.5 | L172: 150 | O172: 0
A173: 981.55 981.455(a) | B173: Interhandler Transfer of Almonds | G173: ABC 7 | H173: 50 | I173: 5 | J173: =SUM(H173*I173) -> 250 | K173: 0.5 | L173: =SUM(J173*K173) -> 125 | O173: =SUM(M173*N173) -> 0
A174: 981.442(a) | B174: Inedible and Exempt Outlet Disposition - Notice of Delivery to Oil or Feed | G174: ABC 8 | H174: 100 | I174: 3.53 | J174: =SUM(H174*I174) -> 353 | K174: 0.5 | L174: =SUM(J174*K174) -> 176.5 | O174: =SUM(M174*N174) -> 0
A175: 981.455(c) | B175: Transfer of Unprocessed Almonds | G175: ABC 9 | H175: 10 | I175: 1 | J175: =SUM(H175*I175) -> 10 | K175: 0.5 | L175: =SUM(J175*K175) -> 5 | O175: =SUM(M175*N175) -> 0
A176: 981.455(b) | B176: Reserve Credit Transfer or Reserve Withholding Obligation Transfer | G176: ABC 11 | H176: 23 | I176: 1.3 | J176: 29.9 | K176: 0.25 | L176: 7.475 | O176: 0
A177: 981.67 981.467 | B177: Disposition of Reserve to Non-Competitive Outlets | G177: ABC-12 | H177: 100 | I177: 1 | J177: 100 | K177: 0.167 | L177: 16.7 | O177: 0
A178: 981.74 981.474(b) | B178: Intention to Ship Reserve Almonds | G178: ABC 13 | H178: 23 | I178: 1.5 | J178: 34.5 | K178: 0.2 | L178: 6.9 | O178: 0
B179: SUBTOTAL | J179: =SUM(J168:J178) -> 2587.4 | L179: =SUM(L168:L178) -> 1242.575 | M179: =SUM(M168:M178) -> 0 | O179: =SUM(O168:O178) -> 0
A180: 981.74 981.474(b) | B180: Completion of Disposition of Reserve Almonds | G180: ABC 14 | H180: 23 | I180: 2 | J180: 46 | K180: 0.2 | L180: 9.2 | O180: 0
A181: 981.32 | B181: Independent Grower Ballot | G181: ABC-15 | H181: 650 | I181: 1 | J181: =SUM(H181*I181) -> 650 | K181: 0.08333 | L181: =SUM(J181*K181) -> 54.1645 | O181: =SUM(M181*N181) -> 0
A182: 981.32 | B182: Independent Handler Ballot | G182: ABC-16 | H182: 20 | I182: 1 | J182: =SUM(H182*I182) -> 20 | K182: 0.08333 | L182: =SUM(J182*K182) -> 1.6666 | O182: =SUM(M182*N182) -> 0
A183: 981.32 | B183: Cooperative Grower Ballot | G183: ABC-17 | H183: 1 | I183: 1 | J183: 1 | K183: 0.08333 | L183: 0.08333 | O183: 0
A184: 981.32 | B184: Cooperative Handler Ballot | G184: ABC-18 | H184: 1 | I184: 1 | J184: 1 | K184: 0.0833 | L184: =SUM(J184*K184) -> 0.0833 | O184: =SUM(M184*N184) -> 0
A185: 981.32 | B185: Grower Petition | G185: ABC-19 | H185: 5 | I185: 1 | J185: 5 | K185: 0.167 | L185: =SUM(J185*K185) -> 0.835 | O185: =SUM(M185*N185) -> 0
A186: 981.74 981.474(a) | B186: Report of Shipments and Commitments (electronic) | G186: ABC 25-1 | H186: 100 | I186: 12 | J186: 1200 | K186: 0.5 | L186: 600 | O186: 0
A187: 981.74 981.474(a) | B187: Shipments by Country of Destination (electronic) | G187: ABC 25-2 | H187: 100 | I187: 12 | J187: 1200 | K187: 0.5 | L187: 600 | O187: 0
A188: 981.32 | B188: Accepted User Plan | G188: ABC 30 | H188: 24 | I188: 1 | J188: =SUM(H188*I188) -> 24 | K188: 2 | L188: =SUM(J188*K188) -> 48 | O188: 0
A189: 981.442(a) | B189: Accepted User Business Data Sheet | G189: ABC 31 | H189: 43 | I189: 1 | J189: =SUM(H189*I189) -> 43 | K189: 0.5 | L189: =SUM(J189*K189) -> 21.5 | O189: =SUM(M189*N189) -> 0
A190: 981.441(a)(7) | B190: Application to be Approved as an Accepted User of Inedible Almonds and Almond Waste | G190: ABC 34 | H190: 43 | I190: 1 | J190: =SUM(H190*I190) -> 43 | K190: 0.5 | L190: =SUM(J190*K190) -> 21.5 | O190: =SUM(M190*N190) -> 0
A191: 981.474 | B191: Handler Information Sheet | G191: ABC 42 | H191: 100 | I191: 1 | J191: =SUM(H191*I191) -> 100 | K191: 0.25 | L191: =SUM(J191*K191) -> 25 | O191: =SUM(M191*N191) -> 0
B192: SUBTOTAL | J192: =SUM(J180:J191) -> 3333 | L192: =SUM(L180:L191) -> 1382.03273 | M192: =SUM(M180:M191) -> 0 | O192: =SUM(O180:O191) -> 0
A193: 7 CFR | B193: 982 - HAZELNUTS
A194: 982.466 | B194: Report of Hazelnut Certifications Shipments and Diversion Requirements | G194: F/H Form 1 | H194: 14 | I194: 5 | J194: =SUM(H194*I194) -> 70 | K194: 0.25 | L194: =SUM(J194*K194) -> 17.5 | O194: =SUM(M194*N194) -> 0
A195: 982.466 | B195: Domestic Inshell Shipments | G195: F/H Form 1(a) | H195: 14 | I195: 4 | J195: 56 | K195: 0.25 | L195: 14 | O195: 0
A196: 982.466 | B196: Export Inshell Shipments | G196: F/H Form 1(b) | H196: 15 | I196: 4 | J196: =SUM(H196*I196) -> 60 | K196: 0.25 | L196: =SUM(J196*K196) -> 15 | O196: =SUM(M196*N196) -> 0
A197: 982.466 | B197: Kernels Certified | G197: F/H Form 1(c) | H197: 14 | I197: 4 | J197: 56 | K197: 0.25 | L197: 14 | O197: 0
A198: 982.466 | B198: Restricted Inshell Certified | G198: F/H Form 1(d) | H198: 14 | I198: 4 | J198: 56 | K198: 0.25 | L198: 14 | O198: 0
A199: 982.466 | B199: Kernel Shipments | G199: F/H Form 1(e) | H199: 14 | I199: 4 | J199: =SUM(H199*I199) -> 56 | K199: 0.25 | L199: =SUM(J199*K199) -> 14 | O199: =SUM(M199*N199) -> 0
A200: 982.68 982.467 | B200: Receipt & Disposition of Hazelnuts Produced Outside the U.S. | G200: F/H Form 1(f) | H200: 5 | I200: 2 | J200: =SUM(H200*I200) -> 10 | K200: 0.25 | L200: =SUM(J200*K200) -> 2.5 | O200: =SUM(M200*N200) -> 0
... 149 more rows
